bitfinex/quotes_ETHUSD_20250708
["timestamp","ask_amount","ask_price","bid_price","bid_amount"]
[1751948221897,16.67789648,2538.6,2538.5,0.0443323]
[1751948222405,18.09561877,2538.6,2538.5,0.0443323]
[1751948227523,12.15561877,2538.6,2538.5,0.0443323]
[1751948227700,18.09561877,2538.6,2538.5,0.0443323]
[1751948235161,18.0982757,2538.6,2538.5,0.0443323]
[1751948236951,18.0967,2538.6,2538.5,0.0443323]
[1751948238359,18.05927706,2538.6,2538.5,0.0443323]
[1751948241661,22.82205613,2538.6,2538.5,0.0443323]
[1751948241851,18.88287706,2538.6,2538.5,0.0443323]
[1751948242051,12.11927706,2538.6,2538.5,0.0443323]
[1751948242233,18.05927706,2538.6,2538.5,0.0443323]
[1751948249197,22.80845613,2538.6,2538.5,0.0443323]
[1751948249346,24.58238983,2538.6,2538.5,0.0443323]
[1751948250043,18.86927706,2538.6,2538.5,0.0443323]
[1751948250249,22.80845613,2538.6,2538.5,0.0443323]
[1751948250562,18.86927706,2538.6,2538.5,0.0443323]
[1751948251278,22.80845613,2538.6,2538.5,0.0443323]
[1751948252564,22.80847847,2538.6,2538.5,0.0443323]
[1751948254085,18.8692994,2538.6,2538.5,0.0443323]
[1751948255189,22.80847847,2538.6,2538.5,0.0443323]
[1751948256964,28.77844497,2538.6,2538.5,0.0443323]
[1751948259085,28.7778631,2538.6,2538.5,0.0443323]
[1751948260891,28.03871202,2538.6,2538.5,0.0443323]
[1751948261094,29.81291838,2538.6,2538.5,0.0443323]
[1751948265489,25.87373931,2538.6,2538.5,0.0443323]
[1751948265991,29.81291838,2538.6,2538.5,0.0443323]
[1751948266192,28.03971202,2538.6,2538.5,0.0443323]
[1751948266396,29.81291838,2538.6,2538.5,0.0443323]
[1751948267393,28.03971202,2538.6,2538.5,0.0443323]
[1751948267564,29.81291838,2538.6,2538.5,0.0443323]
[1751948268295,28.18232995,2538.6,2538.5,0.0443323]
[1751948268601,18.13056645,2538.6,2538.5,0.0443323]
[1751948269789,18.86840941,2538.6,2538.5,0.0443323]
[1751948269971,18.86840942,2538.6,2538.5,0.0443323]
[1751948271426,12.11840942,2538.6,2538.5,0.0443323]
[1751948271622,18.05840942,2538.6,2538.5,0.0443323]
[1751948275000,18.05859821,2538.6,2538.5,0.0443323]
[1751948287371,21.99777728,2538.6,2538.5,0.0443323]
[1751948287548,24.58578364,2538.6,2538.5,0.0443323]
[1751948290269,24.21667336,2538.6,2538.5,0.0443323]
[1751948290635,24.21667336,2538.6,2538.4,0.002]
[1751948290636,13.93933425,2538.5,2538.4,0.002]
[1751948290836,18.85968155,2538.5,2538.4,0.002]
[1751948291363,23.2656108,2538.5,2538.4,0.002]
[1751948291534,18.49076007,2538.5,2538.4,0.002]
[1751948292656,23.50599934,2538.5,2538.4,0.002]
[1751948293168,23.8748529,2538.5,2538.4,0.002]
[1751948294074,24.24368226,2538.5,2538.4,0.002]
[1751948295777,24.24345968,2538.5,2538.4,0.002]
[1751948299052,26.01315593,2538.5,2538.4,0.002]
[1751948299551,26.01015317,2538.5,2538.4,0.002]
[1751948300154,18.63115317,2538.5,2538.4,0.002]
[1751948300351,24.57115317,2538.5,2538.4,0.002]
[1751948302963,18.63115317,2538.5,2538.4,0.002]
[1751948303193,24.57115317,2538.5,2538.4,0.002]
[1751948303992,22.80156507,2538.5,2538.4,0.002]
[1751948304193,25.1653258,2538.5,2538.4,0.002]
[1751948304690,22.80156507,2538.5,2538.4,0.002]
[1751948305096,25.16066388,2538.5,2538.4,0.002]
[1751948305273,20.86875852,2538.4,2538.3,0.002]
[1751948305475,25.38073499,2538.4,2538.3,0.002]
[1751948305876,23.02188934,2538.4,2538.3,0.002]
[1751948306473,28.96188934,2538.4,2538.3,0.002]
[1751948307858,31.32073499,2538.4,2538.3,0.002]
[1751948309489,28.96188934,2538.4,2538.3,0.002]
[1751948309996,31.87073499,2538.4,2538.3,0.002]
[1751948314114,30.45506451,2538.4,2538.3,0.002]
[1751948314879,28.09621886,2538.4,2538.3,0.002]
[1751948315722,31.87098321,2538.4,2538.3,0.002]
[1751948318941,28.09626804,2538.4,2538.3,0.002]
[1751948319229,13.93964464,2538.3,2538.2,0.002]
[1751948319527,20.61815416,2538.3,2538.2,0.002]
[1751948319928,14.74411032,2538.0,2537.9,0.002]
[1751948320129,14.13706557,2537.9,2537.8,0.002]
[1751948320303,19.91068991,2537.8,2537.5,0.0423323]
[1751948320508,10.1968,2537.7,2537.5,0.0423323]
[1751948320720,6.87530952,2537.7,2537.5,0.0423323]
[1751948320918,20.81588563,2537.7,2537.5,0.0423323]
[1751948321126,20.81588563,2537.7,2537.0,0.0423323]
[1751948321127,3.94089553,2537.5,2537.0,0.0423323]
[1751948321295,10.0,2537.2,2537.0,0.0423323]
[1751948321499,6.67850952,2537.1,2537.0,0.0423323]
[1751948321729,6.67907502,2537.1,2537.0,0.8600323]
[1751948321899,0.73707502,2537.1,2537.0,0.8600323]
[1751948322100,6.68007502,2537.1,2537.0,0.8600323]
[1751948322541,0.73707502,2537.1,2537.0,0.8600323]
[1751948322747,6.31134485,2537.1,2537.0,0.8600323]
[1751948323826,0.36834485,2537.1,2537.0,0.8600323]
[1751948329863,0.36834485,2537.1,2537.0,0.8620323]
[1751948335934,0.73610508,2537.1,2537.0,0.0443323]
[1751948336130,12.56403956,2537.1,2537.0,0.0443323]
[1751948336337,18.50703956,2537.1,2537.0,0.0443323]
[1751948337348,24.47730864,2537.1,2537.0,0.0443323]
[1751948337550,25.28140864,2537.1,2537.0,0.0443323]
[1751948338360,30.63534901,2537.1,2537.0,0.0443323]
[1751948341461,32.07534826,2537.1,2537.0,0.0443323]
[1751948342462,33.83985056,2537.1,2537.0,0.0443323]
[1751948343365,32.07534826,2537.1,2537.0,0.0443323]
[1751948344136,31.70758878,2537.1,2537.0,0.0443323]
[1751948344446,33.84310401,2537.1,2537.0,0.0443323]
[1751948349994,33.84355606,2537.1,2537.0,0.0443323]
[1751948351347,32.07576249,2537.1,2537.0,0.0443323]
[1751948352488,34.42843223,2537.1,2537.0,0.0443323]
[1751948352861,34.42843223,2537.1,2536.5,0.0423323]
[1751948352862,10.0,2536.7,2536.5,0.0423323]
[1751948353182,14.03695091,2536.6,2536.5,0.0423323]
[1751948353766,17.97923585,2536.6,2536.5,0.0423323]
[1751948354657,14.03695091,2536.6,2536.5,0.0423323]
[1751948354856,24.03695091,2536.6,2536.5,0.0423323]
[1751948355056,25.66808539,2536.6,2536.5,0.0423323]
[1751948355665,29.61037033,2536.6,2536.5,0.0423323]
[1751948356970,29.61017284,2536.6,2536.5,0.0423323]
[1751948357279,36.34054192,2536.6,2536.5,0.0423323]
[1751948357597,37.73711726,2536.6,2536.5,0.0423323]
[1751948357799,38.10491759,2536.6,2536.5,0.0423323]
[1751948358902,10.1968,2536.5,2536.0,0.0423323]
[1751948359105,10.0,2536.1,2536.0,0.0423323]
[1751948359403,22.62660066,2536.1,2536.0,0.0423323]
[1751948359778,22.92115954,2536.1,2536.0,0.0423323]
[1751948361483,11.03015954,2536.1,2536.0,0.8398323]
[1751948361679,0.3675026,2536.1,2536.0,0.8398323]
[1751948361919,10.0,2536.2,2536.0,0.8398323]
[1751948362213,0.1968,2536.5,2536.2,0.7975]
[1751948362395,0.36764713,2536.4,2536.2,0.7975]
[1751948362595,1.6081811,2536.6,2536.2,0.7975]
[1751948362817,0.36763322,2536.5,2536.4,0.7975]
[1751948364895,0.36763322,2536.5,2536.4,0.78053585]
[1751948365215,0.73550753,2536.5,2536.4,0.78053585]
[1751948366918,0.36763322,2536.5,2536.4,0.97733585]
[1751948367107,0.36763322,2536.5,2536.4,4.91993165]
[1751948367312,0.36763322,2536.8,2536.6,3.94220508]
[1751948367493,3.10386974,2537.5,2536.6,3.94220508]
[1751948367494,1.41295923,2537.2,2536.6,3.94220508]
[1751948367820,0.73609524,2537.1,2536.8,0.8268]
[1751948368012,0.73609524,2537.0,2536.8,0.8268]
[1751948368325,0.36804762,2536.9,2536.8,1.32336734]
[1751948369937,0.36804762,2536.9,2536.8,0.8268]
[1751948371226,0.36804762,2537.2,2536.8,0.8268]
[1751948371422,0.73592905,2537.1,2536.8,0.8268]
[1751948371628,0.36804762,2537.0,2536.8,0.8268]
[1751948371800,0.36804762,2536.9,2536.8,0.8268]
[1751948371995,0.36804762,2537.2,2536.9,0.7976]
[1751948372298,0.73575526,2537.1,2536.9,0.7976]
[1751948372500,0.36787763,2537.0,2536.9,0.7976]
[1751948372701,0.36787763,2537.1,2536.9,0.7976]
[1751948372926,0.36787763,2537.0,2536.9,0.7976]
[1751948373309,10.0,2537.2,2536.9,0.7976]
[1751948373530,0.73546713,2537.1,2536.9,0.7976]
[1751948373751,0.36873364,2537.0,2536.9,0.7976]
[1751948375400,0.001,2537.0,2536.9,0.7976]
[1751948389157,0.36868083,2537.0,2536.9,0.7976]
[1751948389531,0.001,2537.0,2536.9,0.7976]
[1751948389936,0.36868083,2537.0,2536.7,0.9608]
[1751948390137,0.001,2537.0,2536.7,0.9608]
[1751948390523,0.001,2537.0,2536.8,0.764]
[1751948390751,0.001,2537.0,2536.9,0.1968]
[1751948390937,0.001,2537.0,2536.9,4.13861875]
[1751948391622,0.36925732,2537.0,2536.9,4.13861875]
[1751948391826,0.001,2537.0,2536.9,5.00613693]
[1751948392022,0.001,2537.0,2536.9,6.06328887]
[1751948393141,0.36948658,2537.0,2536.9,6.06328887]
[1751948393344,0.001,2537.0,2536.9,6.57387069]
[1751948393944,0.001,2537.0,2536.9,6.61328887]
[1751948394461,0.001,2537.0,2536.9,6.57387069]
[1751948394763,0.001,2537.0,2536.9,12.52487069]
[1751948395152,0.001,2537.0,2536.9,13.96787069]
[1751948396062,0.001,2537.0,2536.9,6.57387069]
[1751948396261,0.001,2537.0,2536.9,13.41787069]
[1751948397268,0.001,2537.0,2536.9,11.97587069]
[1751948397433,0.001,2537.0,2536.9,2.08205194]
[1751948397763,0.001,2537.0,2536.9,6.9779]
[1751948397974,0.001,2537.0,2536.9,10.91971875]
[1751948398844,0.001,2537.0,2536.9,4.96671875]
[1751948399145,0.001,2537.0,2536.9,10.91871875]
[1751948400235,0.001,2537.0,2536.9,4.96671875]
[1751948400436,0.001,2537.0,2536.9,11.97192268]
[1751948400770,0.001,2537.0,2536.9,18.49219176]
[1751948402462,0.001,2537.0,2536.9,12.54019176]
[1751948402660,0.001,2537.0,2536.9,6.01992268]
[1751948402863,0.001,2537.0,2536.9,11.97292268]
[1751948407969,0.001,2537.0,2536.9,11.92292268]
[1751948408948,0.001,2537.0,2536.9,12.47292268]
[1751948409872,0.001,2537.0,2536.9,13.91792268]
[1751948411902,0.001,2537.0,2536.9,5.96992268]
[1751948412186,0.001,2537.0,2536.9,6.1008]
[1751948412359,0.001,2537.0,2536.9,10.04261875]
[1751948413884,0.001,2537.0,2536.9,10.85831875]
[1751948416966,0.001,2537.0,2536.9,17.37858783]
[1751948423185,0.001,2537.0,2536.9,27.37858783]
[1751948423412,0.001,2537.0,2536.9,30.65494287]
[1751948426722,0.001,2537.5,2537.4,5.32344201]
[1751948427014,0.001,2537.5,2537.4,12.72344201]
[1751948427194,0.001,2537.5,2537.4,12.92024201]
[1751948430016,0.001,2537.5,2537.4,7.5958]
[1751948430218,0.001,2537.5,2537.4,0.1968]
[1751948430591,0.001,2537.5,2537.4,6.1498]
[1751948430592,0.36988418,2537.5,2537.4,6.1498]
[1751948430792,0.36988418,2537.5,2537.4,6.1508]
[1751948431018,0.36988418,2537.5,2537.4,5.954]
[1751948431730,0.36988418,2537.5,2537.4,5.955]
[1751948432522,0.36988418,2537.5,2537.3,0.1968]
[1751948432725,0.001,2537.5,2537.4,5.955]
[1751948432927,0.36981762,2537.5,2537.4,5.955]
[1751948434330,0.36981762,2537.5,2537.4,5.954]
[1751948445238,0.73874014,2537.5,2537.4,5.954]
[1751948449913,0.36981762,2537.5,2537.4,5.954]
[1751948450519,0.36995468,2537.5,2537.4,5.954]
[1751948454359,0.36996088,2537.5,2537.4,5.954]
[1751948458276,0.73911838,2537.5,2537.4,5.954]
[1751948459877,0.36996088,2537.5,2537.4,11.29836597]
[1751948460082,0.36996088,2537.5,2537.4,11.49516597]
[1751948460252,0.73938356,2537.5,2537.4,11.49516597]
[1751948460480,0.36996088,2537.5,2537.4,7.55412396]
[1751948462175,0.370424,2537.5,2537.4,7.55412396]
[1751948462890,0.370424,2537.5,2537.4,11.49516597]
[1751948464074,0.370424,2537.5,2537.4,7.55412396]
[1751948464577,0.370424,2537.5,2537.4,11.49516597]
[1751948465106,0.37034069,2537.5,2537.4,7.55412396]
[1751948467913,0.37028511,2537.5,2537.4,7.54812396]
[1751948468207,0.37028511,2537.5,2537.4,6.1448]
[1751948468608,0.73954676,2537.5,2537.4,6.1448]
[1751948470915,0.73955675,2537.5,2537.4,6.1448]
[1751948473927,0.37028511,2537.5,2537.4,6.1448]
[1751948475121,0.73959162,2537.5,2537.4,6.1448]
[1751948475328,0.73959762,2537.5,2537.4,6.1448]
[1751948475533,0.73959762,2537.5,2537.4,7.29769973]
[1751948476753,0.73964096,2537.5,2537.4,7.29769973]
[1751948477637,0.37032048,2537.5,2537.4,11.27815216]
[1751948477943,0.37032048,2537.5,2537.4,7.29769973]
[1751948478521,0.37032048,2537.5,2537.4,11.23874174]
[1751948479000,0.37034642,2537.5,2537.4,11.23874174]
[1751948480563,0.37034642,2537.5,2537.4,7.29769973]
[1751948480946,0.37034642,2537.5,2537.4,11.23874174]
[1751948481754,0.37034642,2537.5,2537.4,7.29769973]
[1751948485856,0.37034642,2537.5,2537.4,11.23874174]
[1751948487329,0.0423323,2538.0,2537.9,3.94026557]
[1751948487535,0.41167629,2538.0,2537.9,10.63106557]
[1751948487741,0.0423323,2538.0,2537.9,12.78683665]
[1751948488955,0.0423323,2538.0,2537.9,6.84283665]
[1751948489265,0.0423323,2538.0,2537.9,12.88466822]
[1751948489445,0.0423323,2538.0,2537.9,12.84526557]
[1751948489864,0.0423323,2538.0,2537.9,12.84626557]
[1751948490164,0.0423323,2538.0,2537.9,5.45626557]
[1751948490465,0.0423323,2538.0,2537.9,10.09006557]
[1751948490677,0.0423323,2538.0,2537.9,11.71404064]
[1751948491048,0.0423323,2538.0,2537.9,7.77377507]
[1751948491576,0.0423323,2538.0,2537.9,11.71404064]
[1751948492086,0.0423323,2538.0,2537.9,12.26404064]
[1751948492242,0.0423323,2538.0,2537.9,13.01974064]
[1751948496151,0.0423323,2538.0,2537.9,7.06674064]
[1751948496357,0.0423323,2538.0,2537.9,14.46274064]
[1751948498363,0.0423323,2538.0,2537.9,14.46174064]
[1751948501895,0.0423323,2538.0,2537.9,7.06674064]
[1751948502101,0.0423323,2538.0,2537.9,14.46074064]
[1751948511621,0.0423323,2538.0,2537.9,1.82077507]
[1751948511913,0.8688323,2538.0,2537.9,6.1478]
[1751948512206,0.8688323,2538.0,2537.9,6.1488]
[1751948512408,0.8688323,2538.0,2537.9,0.1968]
[1751948512596,10.41077195,2538.0,2537.6,0.1968]
[1751948512789,0.8265,2537.8,2537.6,0.1968]
[1751948512973,0.8265,2537.8,2537.7,5.954]
[1751948513178,1.19489943,2537.8,2537.7,5.954]
[1751948513574,1.19489943,2537.8,2537.6,0.1968]
[1751948513791,0.36839943,2537.7,2537.6,0.1968]
[1751948514000,0.36839943,2537.7,2537.6,6.1508]
[1751948515111,0.36837333,2537.7,2537.6,6.1508]
[1751948518315,0.8265,2537.8,2537.6,6.1508]
[1751948523637,0.8706323,2538.0,2537.6,6.1508]
[1751948523817,0.368014,2537.9,2537.6,6.1508]
[1751948529642,0.8706323,2538.0,2537.7,0.7981]
[1751948529643,0.0423323,2538.0,2537.7,0.7981]
[1751948529942,0.36819746,2537.9,2537.8,6.1498]
[1751948530109,0.0423323,2538.0,2537.8,6.1498]
[1751948530311,0.36822806,2537.9,2537.8,6.1498]
[1751948531343,0.36826981,2537.9,2537.8,6.1498]
[1751948540079,0.36891959,2537.9,2537.8,6.1498]
[1751948540688,0.0423323,2538.0,2537.8,10.88242503]
[1751948540894,0.0423323,2538.0,2537.8,8.46848397]
[1751948541080,0.36908217,2537.9,2537.8,8.46848397]
[1751948542285,0.36908217,2537.9,2537.8,6.1498]
[1751948545797,0.36921802,2537.9,2537.8,6.1498]
[1751948546692,0.36921802,2537.9,2537.8,6.1892042]
[1751948547070,0.36921802,2537.9,2537.8,10.12962503]
[1751948547276,0.36921802,2537.9,2537.8,6.1498]
[1751948547594,0.36921802,2537.9,2537.8,6.1892042]
[1751948548219,0.0423323,2538.0,2537.9,4.75626557]
[1751948548517,0.0423323,2538.0,2537.9,5.30626557]
[1751948558729,0.0423323,2538.0,2537.9,5.949]
[1751948559100,0.0423323,2538.0,2537.9,9.88926557]
[1751948567014,0.0423323,2538.0,2537.9,10.65206557]
[1751948567313,0.0423323,2538.0,2537.9,12.43198452]
[1751948571546,0.0423323,2538.0,2537.9,11.66918452]
[1751948572950,0.0433323,2538.0,2537.9,11.66918452]
[1751948586852,0.0433323,2538.0,2537.9,12.99998452]
[1751948606108,0.0433323,2538.0,2537.8,0.1968]
[1751948606789,0.8495323,2538.0,2537.9,5.944]
[1751948609387,0.0433323,2538.0,2537.9,9.88426557]
[1751948610791,0.0433323,2538.0,2537.9,5.944]
[1751948614131,0.0433323,2538.0,2537.9,9.88426557]
[1751948614899,0.0433323,2538.0,2537.9,5.944]
[1751948615635,0.0433323,2538.0,2537.9,9.88426557]
[1751948615932,0.0433323,2538.0,2537.9,5.944]
[1751948618643,0.0433323,2538.0,2537.9,9.88426557]
[1751948624748,0.0433323,2538.0,2537.9,11.43051351]
[1751948625046,0.0433323,2538.0,2537.9,11.98051351]
[1751948627876,0.0433323,2538.0,2537.9,16.75522344]
[1751948628024,0.0433323,2538.0,2537.9,27.56502344]
[1751948629960,0.0433323,2538.0,2537.9,8.28731351]
[1751948630149,0.0433323,2538.0,2537.9,14.23131351]
[1751948631230,0.0433323,2538.0,2537.9,24.23131351]
[1751948631452,0.0433323,2538.0,2537.9,16.84631351]
[1751948631760,0.0433323,2538.0,2537.9,24.23131351]
[1751948633551,0.0433323,2538.0,2537.9,21.98051351]
[1751948634259,0.0433323,2538.0,2537.9,11.54624794]
[1751948634427,0.0433323,2538.0,2537.9,15.944]
[1751948640341,0.0433323,2538.0,2537.9,19.88426557]
[1751948641775,0.0433323,2538.0,2537.9,20.43426557]
[1751948642108,0.0433323,2538.0,2537.9,27.16219563]
[1751948642583,0.0433323,2538.0,2537.9,21.19386557]
[1751948642748,0.0433323,2538.0,2537.9,24.46790039]
[1751948646991,0.0433323,2538.0,2537.9,30.43623045]
[1751948648000,0.0433323,2538.0,2537.9,24.46790039]
[1751948654893,0.0433323,2538.0,2537.9,7.21430039]
[1751948655206,0.0433323,2538.0,2537.9,9.88326557]
[1751948655780,0.0433323,2538.0,2537.8,5.57814662]
[1751948655983,0.8395323,2538.0,2537.9,5.943]
[1751948657606,0.8395323,2538.0,2537.8,0.1968]
[1751948657778,0.8395323,2538.0,2537.9,5.944]
[1751948658887,0.0433323,2538.0,2537.9,10.43426557]
[1751948659231,0.0433323,2538.0,2537.9,11.83644099]
[1751948662916,0.0433323,2538.0,2537.9,12.58994099]
[1751948666916,0.0433323,2538.0,2537.9,6.64594099]
[1751948667113,0.0433323,2538.0,2537.9,12.59194099]
[1751948691049,0.0433323,2538.0,2537.9,14.03294099]
[1751948695656,0.0433323,2538.0,2537.9,24.03294099]
[1751948708964,0.0433323,2538.0,2537.9,28.80668585]
[1751948717485,0.0433323,2538.0,2537.9,23.27944099]
[1751948721095,0.0433323,2538.0,2537.9,3.94026557]
[1751948721261,0.0433323,2538.0,2537.9,9.88326557]
[1751948721669,0.0433323,2538.0,2537.9,10.43326557]
[1751948724192,0.0433323,2538.0,2537.9,4.49026557]
[1751948724500,0.0433323,2538.0,2537.9,10.43326557]
[1751948726203,0.0433323,2538.0,2537.8,4.13717734]
[1751948726376,0.0433323,2538.0,2537.9,5.943]
[1751948727301,0.0433323,2538.0,2537.8,4.13717734]
[1751948727502,0.7793,2537.9,2537.8,4.68717734]
[1751948727704,0.7793,2537.9,2537.8,10.63017734]
[1751948734396,0.7793,2537.9,2537.8,6.6898]
[1751948734721,0.7793,2537.9,2537.8,0.1968]
[1751948735414,0.7793,2537.9,2537.8,6.1398]
[1751948736441,0.7793,2537.9,2537.8,0.1968]
[1751948736649,0.7793,2537.9,2537.8,6.1398]
[1751948738721,0.7793,2537.9,2537.8,6.1408]
[1751948745555,0.0433323,2538.0,2537.8,10.08122083]
[1751948748274,0.0433323,2538.0,2537.9,4.49026557]
[1751948750478,0.0433323,2538.0,2537.9,0.55]
[1751948752369,0.7937,2537.9,2537.8,6.1408]
[1751948753370,0.7937,2537.9,2537.8,0.1968]
[1751948753560,1.16227084,2537.9,2537.8,6.1408]
[1751948754818,1.16227084,2537.9,2537.7,5.944]
[1751948755095,0.7937,2537.9,2537.7,6.1408]
[1751948755461,0.36863491,2537.8,2537.7,0.1968]
[1751948755672,0.36863491,2537.8,2537.7,6.1408]
[1751948756879,1.17653491,2537.8,2537.7,0.1968]
[1751948757079,1.17653491,2537.8,2537.7,6.1408]
[1751948757391,0.8079,2537.7,2537.5,0.002]
[1751948757593,6.33883,2537.8,2537.5,0.002]
[1751948757594,7.34517349,2537.6,2537.5,0.002]
[1751948758592,7.71356375,2537.6,2537.5,0.002]
[1751948759863,7.71338592,2537.6,2537.5,0.002]
[1751948760260,1.74319083,2537.6,2537.5,0.002]
[1751948761511,0.799,2537.5,2537.2,6.0928]
[1751948761698,0.36863491,2537.4,2537.2,6.0928]
[1751948762012,0.799,2537.5,2537.2,6.0928]
[1751948762323,0.3680666,2537.4,2537.2,6.0928]
[1751948762501,0.799,2537.5,2537.2,6.0928]
[1751948764615,1.51544386,2537.5,2537.3,3.94112883]
[1751948764780,0.19844349,2537.6,2537.2,6.0928]
[1751948764980,0.36776037,2537.5,2537.2,6.0928]
[1751948765485,0.36776037,2537.5,2537.2,10.03413914]
[1751948765788,0.36776037,2537.5,2537.4,4.13784201]
[1751948765993,10.7515,2537.9,2537.4,4.13784201]
[1751948766203,2.06140312,2537.8,2537.4,4.13784201]
[1751948766420,0.36773989,2537.7,2537.4,4.13784201]
[1751948766599,0.36773989,2537.7,2537.4,0.1968]
[1751948766805,0.36773989,2537.7,2537.4,4.13783116]
[1751948767713,1.69366323,2537.8,2537.4,4.13783116]
[1751948767928,0.36771755,2537.7,2537.4,4.13783116]
[1751948768923,1.69366323,2537.8,2537.4,4.13783116]
[1751948770989,0.7515,2537.9,2537.5,3.9408431]
[1751948771222,0.36771475,2537.8,2537.5,3.9408431]
[1751948771529,0.7515,2537.9,2537.6,0.1968]
[1751948771727,0.36772023,2537.8,2537.6,0.1968]
[1751948771928,0.001,2537.8,2537.6,0.1968]
[1751948772931,0.36873813,2537.8,2537.6,0.1968]
[1751948773435,0.001,2537.8,2537.6,0.1968]
[1751948773612,0.36874699,2537.8,2537.6,0.1968]
[1751948775034,0.36874699,2537.8,2537.6,4.13752048]
[1751948775238,0.001,2537.8,2537.6,0.1968]
[1751948778439,0.3689253,2537.8,2537.6,0.1968]
[1751948778643,0.001,2537.8,2537.6,0.1968]
[1751948779114,0.36892342,2537.8,2537.6,0.1968]
[1751948779315,0.001,2537.8,2537.6,0.1968]
[1751948779815,0.36899552,2537.8,2537.6,0.1968]
[1751948780040,0.001,2537.8,2537.6,0.1968]
[1751948783155,0.3682956,2537.7,2537.6,0.1968]
[1751948787351,0.001,2537.8,2537.6,0.1968]
[1751948794370,0.36857752,2537.7,2537.6,0.1968]
[1751948795464,0.36857752,2537.7,2537.6,1.0162]
[1751948795663,0.001,2537.8,2537.6,1.0162]
[1751948795867,0.36864391,2537.7,2537.6,1.0162]
[1751948796390,0.36865555,2537.7,2537.6,1.0162]
[1751948796983,0.001,2537.8,2537.6,1.0162]
[1751948798492,0.36869398,2537.7,2537.6,1.0162]
[1751948799553,0.36869398,2537.7,2537.6,4.95693139]
[1751948800188,0.36869398,2537.7,2537.6,1.0162]
[1751948800554,0.36869398,2537.7,2537.6,0.1968]
[1751948803788,0.36869398,2537.7,2537.6,4.13753139]
[1751948804166,0.36869398,2537.7,2537.6,6.86413785]
[1751948804361,0.001,2537.8,2537.7,3.94057611]
[1751948806768,0.001,2537.8,2537.6,0.9638]
[1751948806971,0.001,2537.8,2537.6,6.1408]
[1751948808081,4.77695137,2537.7,2537.6,0.1968]
[1751948808280,6.39318706,2537.7,2537.6,0.1968]
[1751948808801,1.61623569,2537.7,2537.6,0.1968]
[1751948808988,1.13844055,2537.7,2537.6,0.1968]
[1751948811440,1.13839947,2537.7,2537.6,0.1968]
[1751948812157,1.13846083,2537.7,2537.6,0.1968]
[1751948812327,0.36886083,2537.7,2537.6,0.1968]
[1751948815572,1.19866083,2537.7,2537.6,0.1968]
[1751948818952,0.36886083,2537.7,2537.6,0.1968]
[1751948825494,0.36885142,2537.7,2537.6,0.1968]
[1751948828783,0.36885142,2537.7,2537.6,4.13753139]
[1751948829184,0.001,2537.8,2537.7,3.94057611]
[1751948829345,0.36987104,2537.8,2537.7,9.88457611]
[1751948830961,0.001,2537.8,2537.7,9.88457611]
[1751948832176,0.001,2537.8,2537.7,10.64257611]
[1751948837994,0.001,2537.8,2537.7,4.69857611]
[1751948838166,0.001,2537.8,2537.7,9.88357611]
[1751948840896,0.001,2537.8,2537.6,0.1968]
[1751948841078,0.001,2537.8,2537.7,5.943]
[1751948844501,0.001,2537.8,2537.6,0.1968]
[1751948844906,0.001,2537.8,2537.7,5.943]
[1751948845205,0.36963191,2537.8,2537.7,5.943]
[1751948845773,0.36963522,2537.8,2537.7,5.943]
[1751948851700,0.36969769,2537.8,2537.7,5.943]
[1751948855109,0.36969769,2537.8,2537.6,0.1968]
[1751948855309,0.36869769,2537.7,2537.6,0.1968]
[1751948857723,0.36873014,2537.7,2537.6,0.1968]
[1751948861423,0.001,2537.8,2537.6,0.1968]
[1751948863603,0.36875741,2537.7,2537.6,0.1968]
[1751948871269,0.001,2537.8,2537.7,3.94057611]
[1751948874650,0.001,2537.8,2537.7,11.29638187]
[1751948874861,0.001,2537.8,2537.7,17.22496576]
[1751948875668,0.001,2537.8,2537.7,11.25697611]
[1751948881360,0.001,2537.8,2537.7,11.45377611]
[1751948881560,0.001,2537.8,2537.7,13.69105357]
[1751948896849,0.001,2537.8,2537.7,18.46595792]
[1751948914601,0.001,2537.8,2537.7,13.69105357]
[1751948915391,0.001,2537.8,2537.7,23.69105357]
[1751948915700,0.0433323,2538.0,2537.9,4.69566557]
[1751948915867,0.0433323,2538.0,2537.9,20.0057407]
[1751948916068,0.0433323,2538.0,2537.9,20.2025407]
[1751948916697,0.0433323,2538.0,2537.9,13.78123635]
[1751948928305,0.0433323,2538.0,2537.9,0.1968]
[1751948928496,0.8262323,2538.0,2537.9,6.1398]
[1751948935416,0.0433323,2538.0,2537.9,6.1398]
[1751948935705,0.0433323,2538.0,2537.9,10.08006557]
[1751948937497,0.0433323,2538.0,2537.9,16.59966776]
[1751948937781,0.0433323,2538.0,2537.9,18.880735]
[1751948938309,0.0433323,2538.0,2537.9,12.91113281]
[1751948939819,0.0433323,2538.0,2537.9,18.880735]
[1751948941195,0.0433323,2538.0,2537.9,19.709635]
[1751948948300,0.0433323,2538.0,2537.9,29.709635]
[1751948952843,0.0433323,2538.5,2538.4,4.48948944]
[1751948953135,0.0433323,2538.5,2538.4,18.04199682]
[1751948953341,0.0433323,2538.5,2538.4,6.08899974]
[1751948953526,0.0433323,2538.5,2538.4,12.04399974]
[1751948954996,0.0433323,2538.5,2538.4,28.01360193]
[1751948963035,0.0433323,2538.5,2538.4,28.21040193]
[1751948986860,0.0433323,2538.5,2538.4,27.01166933]
[1751948987061,0.001,2538.6,2538.5,14.48933425]
[1751948987264,0.001,2538.6,2538.5,24.28222673]
[1751948990759,0.001,2538.8,2538.7,14.4890239]
[1751948990963,0.001,2538.8,2538.7,25.20289349]
[1751948991333,0.001,2538.8,2538.7,25.39969349]
[1751949001169,1e-08,2538.8,2538.7,25.39969349]
[1751949001358,1e-08,2538.8,2538.7,29.24858597]
[1751949001542,0.8696323,2539.5,2539.3,3.93806267]
[1751949001742,0.0433323,2539.5,2539.4,26.68118706]
[1751949001948,0.0433323,2539.5,2539.4,14.48793809]
[1751949002147,0.0433323,2539.5,2539.4,29.43864451]
[1751949002564,1e-08,2539.9,2539.7,4.48744769]
[1751949002763,1e-08,2539.9,2539.8,25.24456065]
[1751949003039,0.8187,2540.4,2540.2,4.48669789]
[1751949003261,1.45814652,2541.0,2540.2,16.39308926]
[1751949003262,0.0423323,2541.0,2540.2,16.39308926]
[1751949003477,0.0423323,2541.0,2540.4,3.93638797]
[1751949003478,0.7581,2540.8,2540.4,3.93638797]
[1751949003778,1.41338251,2541.4,2540.5,4.48623302]